[Event "USA Championship Women 2022"]
[Site "Saint Louis"]
[Date "2022.10.15"]
[Round "10.3"]
[White "Zatonskih, Anna"]
[Black "Lee, Alice"]
[Result "1/2-1/2"]
[ECO "D27"]
[WhiteElo "2368"]
[BlackElo "2263"]
[Annotator "TA"]
[PlyCount "135"]
[EventDate "2022.09.05"]
[EventType "tourn"]
[EventCountry "USA"]
[SourceTitle "playchess.com"]
[Source "ChessBase"]
[SourceQuality "1"]
[TimeControl "40/5400+30:1800+30"]

{[%evp 23,135,16,32,8,17,6,27,11,41,42,26,8,38,40,34,35,33,29,39,36,42,3,5,0,0,0,0,0,0,0,0,0,0,0,23,28,25,7,17,13,39,20,20,20,20,20,21,30,63,8,8,8,8,8,32,8,35,0,8,8,8,8,8,8,8,8,8,0,0,-8,-8,-62,-62,-133,-133,-133,-133,-133,-133,-1440,-418,-29947,-29949,-29951,-5522,-29955,-29951,-11687,-1385,-788,-249,-249,-120,-120,-120,-120,-120,-120,-97,-97,-97,-97,-8,-8,-8,-8,-8,-8,0,-8,0,-8,0,-8]} 1. d4 {[%emt 0:00:30]} d5 {[%emt 0:00:05]} 2. c4 {[%emt 0:00:33]} dxc4 {[%emt 0:00:06]} 3. e3 {[%emt 0:08:39]} Nf6 {[%emt 0:00:15]} 4. Bxc4 {[%emt 0:00:38]} e6 {[%emt 0:00:09]} 5. Nf3 {[%emt 0:03:40]} c5 {[%emt 0:00:08]} 6. O-O {[%emt 0:00:47]} a6 {[%emt 0:00:06]} 7. dxc5 {[%emt 0:01:29]} Bxc5 {[%emt 0:00:10]} 8. Qxd8+ {[%emt 0:00:25]} Kxd8 {[%emt 0:00:02]} 9. b3 {[%emt 0:03:30]} Ke7 {[%emt 0:03:05]} 10. Bb2 {[%emt 0:00:51]} b6 {[%emt 0:06:00]} 11. Nbd2 {[%emt 0:09:48][%cal Bb1d2,Bd2c4,Bc4a5][%mdl 32]} Bb7 {[%emt 0:01:52]} 12. Be2 {[%emt 0:03:01]} Nbd7 {[%emt 0:02:59]} 13. Rfc1 {[%emt 0:06:59] D27: Queen's Gambit Accepted: Classical main line: 7 e4!? and 7 a4.} Rhd8 {[%emt 0:07:47] [#]} 14. Nc4 $146 {[%emt 0:07:47]} ({Predecessor:} 14. a3 Ke8 15. b4 Be7 16. Nd4 Rac8 17. Kf1 {½-½ (17) Luch,M (2415)-Arslanov,S (2376) Olomouc 2009}) 14... Rac8 {[%emt 0:07:29]} 15. a3 {[%emt 0:08:06] White has an edge.} b5 {[%emt 0:06:16]} 16. Na5 {[%emt 0:13:46]} Bd5 {[%emt 0:01:24]} 17. Nd4 {[%emt 0:01:02]} Kf8 {[%emt 0:19:12]} 18. b4 {[%emt 0:02:29]} Bb6 {[%emt 0:02:20]} 19. Ndc6 {[%emt 0:00:28]} Bxa5 {[%emt 0:14:03]} 20. Nxa5 {[%emt 0:00:03]} Ne8 {[%emt 0:00:12]} 21. f3 {[%emt 0:09:01]} f5 {[%emt 0:00:47] Inhibits e4.} 22. Rxc8 {[%emt 0:02:09]} Rxc8 {[%emt 0:00:03]} 23. Rc1 {[%emt 0:00:08] Against Rc2} Rxc1+ {[%emt 0:00:58]} 24. Bxc1 {[%emt 0:00:01]} Nd6 {[%emt 0:02:41]} 25. Kf2 {[%emt 0:01:16]} e5 {[%emt 0:04:42]} 26. Bb2 {[%emt 0:01:20]} Kf7 {[%emt 0:00:30]} 27. h3 {[%emt 0:01:29]} Ke6 {[%emt 0:02:22]} 28. Bd1 {[%emt 0:01:10]} Nc4 {[%emt 0:04:33]} 29. Nxc4 {[%emt 0:00:47]} Bxc4 $11 {[%emt 0:00:18][%mdl 4096] Endgame KBB-KBN} 30. Bc2 {[%emt 0:00:26]} Nb6 {[%emt 0:00:51]} 31. f4 {[%emt 0:00:36]} Nd7 {[%emt 0:00:27]} 32. e4 {[%emt 0:01:00]} fxe4 {[%emt 0:05:42]} 33. Bxe4 {[%emt 0:00:20]} g6 {[%emt 0:00:30]} 34. Bb7 {[%emt 0:03:00]} exf4 {[%emt 0:00:36]} 35. Bxa6 {[%emt 0:01:21][%cal Oa3a4]} Kd5 {[%emt 0:03:46]} 36. Bg7 {[%emt 0:03:10]} (36. Bb7+ $14 Kd6 37. Kf3) 36... Nb6 $1 {[%emt 0:02:50]} 37. Bb7+ {[%emt 0:03:13]} Ke6 {[%emt 0:00:09]} 38. Bd4 {[%emt 0:00:31]} Nd5 {[%emt 0:01:46]} 39. h4 {[%emt 0:02:56]} Ne7 {[%emt 0:00:34]} 40. Bc5 {[%emt 0:01:24]} (40. Kf3 $5 {[%cal Rf3f4]}) 40... Bd5 {[%emt 0:01:53]} 41. Ba6 {[%emt 0:19:57] aiming for Bxe7.} Bc6 {[%emt 0:00:16]} 42. a4 {[%emt 0:00:24]} bxa4 {[%emt 0:00:08] Strongly threatening ...a3.} 43. b5 {[%emt 0:00:02] Threatens to win with Bxe7.} Be4 {[%emt 0:06:35]} 44. b6 {[%emt 0:00:05]} Nc6 {[%emt 0:01:16]} 45. Bc4+ {[%emt 0:00:47] A strong pair of Bishops.} Bd5 {[%emt 0:02:16]} 46. Bb5 {[%emt 0:02:25]} Ne5 {[%emt 0:00:17]} 47. Kg1 {[%emt 0:05:12]} ({White should play} 47. Ba3 $11) 47... Nd7 $15 {[%emt 0:01:36]} (47... Bc6 {with more complications.} 48. Bxa4 Bxa4 49. b7 Nc6) 48. Bxd7+ {[%emt 0:03:10]} (48. b7 $1 $15 Bxb7 49. Ba3) 48... Kxd7 {[%emt 0:00:03] KB-KB} 49. Kf2 {[%emt 0:00:35]} Kc6 {[%emt 0:00:06]} 50. Bf8 {[%emt 0:01:12]} Kxb6 {[%emt 0:01:39]} 51. Bh6 $2 {[%emt 0:00:02][%mdl 8192]} (51. Bd6 $17) 51... Kc5 $19 {[%emt 0:07:59]} 52. Ke2 {[%emt 0:00:43] [#]} (52. Bxf4 $19 a3 53. Ke3) 52... Bxg2 {[%emt 0:00:16]} 53. Bxf4 {[%emt 0:00:03]} a3 {[%emt 0:00:19][%cal Ba4a3,Ba3a2][%mdl 32] ( -> ...h5)} 54. Kd2 {[%emt 0:01:01]} a2 {[%emt 0:00:10]} 55. Be5 {[%emt 0:00:07]} Kd5 {[%emt 0:00:07]} 56. Bg7 {[%emt 0:00:54]} Ke4 $2 {[%emt 0:00:11]} (56... Bf1 57. Kc2 h5) 57. Kc1 {[%emt 0:00:07] [#]} Kf5 {[%emt 0:00:06]} (57... h5 $1 $19 {[%cal Og6g5] has better winning chances. Hoping for ...g5!} 58. Kb2 Bh3) 58. Kb2 $17 {[%emt 0:00:05]} Bd5 {[%emt 0:00:05]} 59. Bh6 {[%emt 0:01:28]} Kg4 {[%emt 0:00:06]} 60. Bg5 {[%emt 0:00:03]} h6 {[%emt 0:00:05]} 61. Bxh6 {[%emt 0:00:09]} Kxh4 {[%emt 0:00:05]} 62. Bd2 {[%emt 0:00:14]} g5 {[%emt 0:00:34]} ({Black should try} 62... Kg4 $17) 63. Bxg5+ $1 $11 {[%emt 0:00:04] The position is equal.} Kxg5 {[%emt 0:00:12]} 64. Ka1 {[%emt 0:00:02]} Kf4 {[%emt 0:00:24]} 65. Kb2 {[%emt 0:00:08]} Kg5 {[%emt 0:00:04]} 66. Ka1 {[%emt 0:00:04]} Kf4 {[%emt 0:00:04]} 67. Kb2 {[%emt 0:00:04]} Kg5 {[%emt 0:00:08]} 68. Ka1 {[%emt 0:00:31] Whites escaped into a draw.  Weighted Error Value: White=0.49/Black=0.16 (very precise)} 1/2-1/2

[Event "USA Championship Women 2022"]
[Site "Saint Louis"]
[Date "2022.10.15"]
[Round "10.4"]
[White "Foisor, Sabina-Francesca"]
[Black "Yan, Ruiyang"]
[Result "1/2-1/2"]
[ECO "D05"]
[WhiteElo "2203"]
[BlackElo "2220"]
[Annotator "TA"]
[PlyCount "161"]
[EventDate "2022.09.05"]
[EventType "tourn"]
[EventCountry "USA"]
[SourceTitle "playchess.com"]
[Source "ChessBase"]
[SourceQuality "1"]
[TimeControl "40/5400+30:1800+30"]

{[%evp 16,161,9,12,19,-9,-6,-31,-28,-35,-33,-71,0,0,0,-25,-20,-14,-18,-24,-22,-24,-16,-8,0,7,0,-57,-73,-79,-68,-76,-72,-104,-96,-102,-54,-113,-97,-147,-142,-181,-89,-84,-90,-112,-112,-104,-108,-208,-206,-247,-247,-249,-224,-306,-225,-221,-218,-217,-209,-199,-201,-187,-145,-145,-145,-145,-145,-156,-156,-166,-155,-156,-156,-156,-149,-171,-177,-167,-160,-227,-221,-234,-160,-207,-207,-215,-164,-244,-240,-239,-160,-160,-160,-160,-160,-154,-139,-220,-156,-166,-53,-59,-64,-142,-143,-654,-628,-908,-908,-908,-760,-892,-905,-1045,-1027,-837,-238,-238,-238,-238,-238,-238,-392,-403,-418,-307,0,0,0,0,0,0,0,0,0,0,0,0,0,0,0,0,0,0,0,0]} 1. d4 {[%emt 0:00:03]} Nf6 {[%emt 0:00:06]} 2. Nf3 {[%emt 0:00:04]} e6 {[%emt 0:00:05]} 3. e3 {[%emt 0:00:16]} d5 {[%emt 0:00:06]} 4. Bd3 {[%emt 0:00:11]} c5 {[%emt 0:00:10]} 5. b3 {[%emt 0:00:09]} Nc6 {[%emt 0:00:07]} 6. O-O {[%emt 0:00:42]} Bd6 {[%emt 0:00:16]} 7. Bb2 {[%emt 0:00:50]} O-O {[%emt 0:00:14]} 8. a3 {[%emt 0:00:27]} b6 {[%emt 0:00:16]} 9. Nbd2 {[%emt 0:01:28]} Bb7 {[%emt 0:00:19] D05: Colle System with ...e6.} 10. Ne5 {[%emt 0:01:40]} Ne7 {[%emt 0:00:28]} 11. f4 {[%emt 0:08:51]} Ne4 {[%emt 0:01:29] Black is slightly better.} 12. Qe2 {[%emt 0:19:21]} Rc8 {[%emt 0:06:52]} 13. dxc5 {[%emt 0:04:20]} Bxc5 {[%emt 0:07:53]} (13... Nxc5 $17 14. Nef3 Nxd3 15. Qxd3 f6) 14. b4 $11 {[%emt 0:04:59]} Bd6 {[%emt 0:00:06]} 15. Nb3 {[%emt 0:11:32]} Nf5 {[%emt 0:07:21]} 16. Nd4 {[%emt 0:09:26] [#]} Nxd4 $146 {[%emt 0:05:04]} ({Predecessor:} 16... Bxe5 17. fxe5 Nh4 18. Qh5 Ng6 19. Nf3 h6 20. a4 Ne7 21. Nd4 Nc6 22. b5 Na5 {1-0 (43) Khurtsilava,I (2259)-Azaladze,S (2464) Tbilisi 2017}) 17. Bxd4 {[%emt 0:00:33]} f6 {[%emt 0:02:19]} 18. Nf3 {[%emt 0:03:37]} Qc7 $36 {[%emt 0:03:23][%mdl 2048] Black has good play.} 19. Bb2 {[%emt 0:02:26]} a5 {[%emt 0:11:36]} 20. Nd4 {[%emt 0:01:47]} Qd7 {[%emt 0:08:18]} (20... axb4 $2 21. Nxe6 Qe7 22. Nxf8 $18) 21. Rf3 {[%emt 0:17:53]} ({White should try} 21. f5 $11) 21... axb4 $15 {[%emt 0:09:06]} 22. axb4 {[%emt 0:00:01]} Bxb4 {[%emt 0:00:47]} 23. Bb5 {[%emt 0:04:23]} Qf7 {[%emt 0:02:53]} 24. f5 {[%emt 0:01:09] [#]} exf5 {[%emt 0:03:59]} (24... e5 $6 25. Ne6 $15) 25. Nxf5 {[%emt 0:01:27]} Kh8 {[%emt 0:00:43]} ({Better is} 25... Rc7 $17 26. Ra7 Bc8 27. Rxc7 Qxc7) 26. Rh3 {[%emt 0:01:25]} ({White should play} 26. Bd3 $15) 26... Rc7 {[%emt 0:01:36] Hoping for ...Bc8.} 27. Rf1 {[%emt 0:00:40] [#]} (27. Rh4 $142) 27... Bc8 $1 $17 {[%emt 0:06:26]} 28. Bd3 {[%emt 0:00:00]} Bc3 {[%emt 0:06:01]} (28... g6 $19 {and Black stays clearly on top.} 29. Nh6 Qg7) 29. Bxc3 {[%emt 0:01:26]} Rxc3 {[%emt 0:00:10]} 30. Rh4 {[%emt 0:01:27][%cal Of5d6]} Bxf5 {[%emt 0:01:13]} 31. Rxf5 {[%emt 0:00:08]} g6 {[%emt 0:00:10] Prevents Rfh5.} 32. Rxd5 {[%emt 0:03:01]} Qxd5 $19 {[%emt 0:00:12]} 33. Bxe4 {[%emt 0:00:23]} Qg5 {[%emt 0:01:00][%csl LRe3,LRh4]} 34. Rh3 {[%emt 0:00:01]} f5 {[%emt 0:02:43]} 35. Qd2 {[%emt 0:01:16]} Qf6 {[%emt 0:00:07]} (35... fxe4 36. Qxc3+ Qf6 37. Qxf6+ Rxf6 38. Rh4 $11) (35... Ra3 $2 36. Qd4+ Qf6 37. Qxf6+ Rxf6 38. Bd3 $19) 36. Bd3 {[%emt 0:00:29]} Ra3 {[%emt 0:00:12] aiming for ...Rd8.} 37. Qb4 {[%emt 0:00:26]} Ra1+ {[%emt 0:00:17]} 38. Kf2 {[%emt 0:00:02]} Ra5 {[%emt 0:03:11]} 39. Rf3 {[%emt 0:00:28]} Rc5 {[%emt 0:01:00]} 40. g4 {[%emt 0:00:47]} Qd6 {[%emt 0:04:47][%cal Oc5c2] Strongly threatening ...Rxc2+!} 41. Qb2+ {[%emt 0:09:17]} Kg8 {[%emt 0:03:34]} 42. gxf5 {[%emt 0:03:39]} Qxh2+ {[%emt 0:01:26]} 43. Kf1 {[%emt 0:01:56]} Qh1+ {[%emt 0:07:02]} 44. Ke2 {[%emt 0:03:23]} Qg2+ {[%emt 0:09:31]} 45. Rf2 {[%emt 0:00:06]} Qc6 {[%emt 0:00:14][%cal Rg6f5]} 46. Qa2+ {[%emt 0:08:14]} Kg7 {[%emt 0:01:38]} 47. Qa1+ {[%emt 0:02:37]} Qf6 {[%emt 0:02:57]} 48. Qa7+ {[%emt 0:00:05]} (48. Qxf6+ $17 Rxf6 49. Rg2) 48... Rf7 {[%emt 0:02:41]} 49. Qb8 {[%emt 0:00:37]} Rfc7 {[%emt 0:02:14]} 50. Kf1 {[%emt 0:01:17]} (50. Rf4 $17 gxf5 51. Bxf5) 50... g5 {[%emt 0:00:46]} (50... gxf5 51. Rg2+ Kf7 52. Qg8+ Ke7 53. Qxh7+ Kd6 54. Qg6 $17) 51. e4 {[%emt 0:00:41][%cal Oe4e5]} Re7 {[%emt 0:00:49]} 52. Kg2 {[%emt 0:01:16]} (52. Qh2 {is a better defense.}) 52... Rce5 {[%emt 0:01:18]} 53. Rf1 {[%emt 0:00:21]} Rxe4 {[%emt 0:04:17]} 54. Bxe4 {[%emt 0:00:48]} Rxe4 {[%emt 0:00:04][%mdl 4096] Endgame KQR-KQR} 55. Qb7+ {[%emt 0:00:39]} Re7 {[%emt 0:00:05]} 56. Qf3 {[%emt 0:01:39]} Rc7 {[%emt 0:00:09]} 57. Qd3 {[%emt 0:01:54]} (57. Kg1 $17) 57... Qc6+ {[%emt 0:02:33]} 58. Kg1 {[%emt 0:00:34]} Rd7 {[%emt 0:00:32]} ({And not} 58... Qxc2 59. f6+ Kf8 60. Qd6+ Kf7 61. Qd5+ Kf8 62. Qd8+ Kf7 63. Qd5+ Kf8 64. Qd8+ Kf7 65. Qd5+ $11) (58... Rf7 $19 {White must now prevent ...h5.} 59. Qd4+ Qf6) 59. f6+ $15 {[%emt 0:00:36]} Kf8 {[%emt 0:00:04]} 60. Qg3 {[%emt 0:00:36]} (60. Qh3 $15 Qc5+ 61. Kh1 Qc6+ 62. Kg1) 60... Qc5+ $17 {[%emt 0:01:00]} 61. Rf2 $2 {[%emt 0:00:14][%mdl 8192]} (61. Kh1 $17) 61... Rd1+ $19 {[%emt 0:00:23]} ({Weaker is} 61... Rd2 62. Qb8+ Kf7 63. Qb7+ Ke6 64. Qe4+ Kf7 65. Qb7+ (65. Qxh7+ Ke6 $11) 65... Kg6 66. Qe4+ Kh5 67. Qh1+ Kg6 68. Qe4+ Kh6 69. Qh1+ Kg6 70. Qe4+ $11) 62. Kh2 {[%emt 0:00:01]} Qd6 {[%emt 0:00:05] Prevents Qb8+.} 63. Qxd6+ {[%emt 0:00:59]} Rxd6 {[%emt 0:00:04] KR-KR} 64. f7 {[%emt 0:00:10]} Rc6 {[%emt 0:02:40] And now ...h5 would win.} 65. Kg1 {[%emt 0:01:05]} h5 {[%emt 0:00:29]} 66. Rf5 {[%emt 0:00:36]} Rxc2 $2 {[%emt 0:00:13]} (66... Rc5 67. Rf6 b5) 67. Rxg5 {[%emt 0:00:15]} Rc5 {[%emt 0:00:21]} 68. Rg6 {[%emt 0:00:18]} b5 {[%emt 0:00:03][%cal Bb6b5,Bb5b4][%mdl 32]} 69. Rf6 {[%emt 0:00:10]} b4 {[%emt 0:00:06]} 70. Rb6 {[%emt 0:00:24] Prevents Rb5.} Rc4 {[%emt 0:00:04]} 71. Rb7 {[%emt 0:00:17]} Rf4 $2 {[%emt 0:00:23]} (71... Rc1+ $19 72. Kg2 Rb1) 72. Kg2 $11 {[%emt 0:00:35] The position is equal.} h4 {[%emt 0:00:45]} 73. Kh2 {[%emt 0:00:29]} Kg7 {[%emt 0:00:34]} 74. Kg2 {[%emt 0:00:06]} Rc4 {[%emt 0:01:09]} 75. Kh2 {[%emt 0:00:17]} Rf4 {[%emt 0:00:59]} 76. Kg2 {[%emt 0:00:07]} b3 {[%emt 0:00:03]} 77. Rxb3 {[%emt 0:00:07]} Kxf7 {[%emt 0:00:03]} 78. Rf3 {[%emt 0:00:41]} h3+ {[%emt 0:00:05]} 79. Rxh3 {[%emt 0:00:06]} Rf6 {[%emt 0:00:05]} 80. Rf3 {[%emt 0:00:03]} Rxf3 {[%emt 0:00:02]} 81. Kxf3 {[%emt 0:00:03] Whites escaped into a draw.  Weighted Error Value: White=0.23 (precise) /Black=0.20 (precise)} 1/2-1/2

[Event "USA Championship Women 2022"]
[Site "Saint Louis"]
[Date "2022.10.15"]
[Round "10.5"]
[White "Lee, Megan"]
[Black "Cervantes Landeiro, Thalia"]
[Result "0-1"]
[ECO "B90"]
[WhiteElo "2226"]
[BlackElo "2272"]
[Annotator "TA"]
[PlyCount "114"]
[EventDate "2022.09.05"]
[EventType "tourn"]
[EventCountry "USA"]
[SourceTitle "playchess.com"]
[Source "ChessBase"]
[SourceQuality "1"]
[TimeControl "40/5400+30:1800+30"]

{[%evp 15,114,33,24,34,44,0,2,0,0,7,0,0,5,3,8,0,37,0,0,7,9,11,7,13,4,0,32,16,47,0,-4,-6,0,0,0,0,0,0,0,-22,0,0,0,-86,-100,-82,-40,-38,-38,-45,-45,-112,-100,-158,-142,-202,-194,-193,-146,-235,-239,-232,-216,-224,-226,-343,-286,-356,-331,-552,-545,-526,-272,-1411,-1398,-2458,-1895,-2404,-1564,-1985,-1422,-2164,-2284,-5181,-3686,-6223,-6190,-29971,-6766,-29975,-29976,-29976,-29977,-29977,-29978,-29978,-29979,-29979,-29980,-29980,-29975]} 1. e4 {[%emt 0:00:03]} c5 {[%emt 0:00:06]} 2. Nf3 {[%emt 0:00:05]} d6 {[%emt 0:00:08]} 3. d4 {[%emt 0:00:05]} cxd4 {[%emt 0:00:06]} 4. Nxd4 {[%emt 0:00:02]} Nf6 {[%emt 0:00:13]} 5. Nc3 {[%emt 0:00:04]} a6 {[%emt 0:00:07]} 6. Be3 {[%emt 0:00:22]} Ng4 {[%emt 0:00:20]} 7. Bc1 {[%emt 0:00:32]} Nc6 {[%emt 0:08:02]} 8. h3 {[%emt 0:08:13]} Nf6 {[%emt 0:03:12]} 9. g4 {[%emt 0:05:21] B90: Sicilian Najdorf: Unusual White 6th moves, 6 Be3 Ng4 and 6 Be3 e5.} e5 {[%emt 0:16:13]} 10. Nb3 {[%emt 0:04:56]} h6 {[%emt 0:03:56]} 11. Bg2 {[%emt 0:02:02] The position is equal.} Be7 {[%emt 0:03:55]} 12. Be3 {[%emt 0:00:46] [#]} Na5 $146 {[%emt 0:12:12]} ({Predecessor:} 12... Be6 13. Qd2 a5 14. Nd5 Bxd5 15. exd5 Nb8 16. a4 Nbd7 17. Nc1 b6 18. Ne2 Qc7 19. b3 Rc8 20. Rc1 Nc5 {1-0 (60) Budima,A (2213)-Berisha,E (2107) Pristina 2017}) 13. Nxa5 {[%emt 0:09:08]} Qxa5 {[%emt 0:00:13]} 14. Qd2 {[%emt 0:00:44]} b5 {[%emt 0:07:59]} 15. O-O {[%emt 0:02:48]} b4 {[%emt 0:05:15]} 16. Nd5 {[%emt 0:06:31]} Nxd5 {[%emt 0:00:15]} 17. exd5 {[%emt 0:00:12]} O-O {[%emt 0:02:30]} 18. a3 {[%emt 0:10:26]} Rb8 {[%emt 0:01:19]} 19. b3 {[%emt 0:06:28]} f5 {[%emt 0:03:37]} 20. gxf5 {[%emt 0:06:04]} Bxf5 {[%emt 0:00:35]} (20... Bd8 {is more complex.} 21. axb4 Qxb4 22. Qxb4 Rxb4 23. Ra3 Rxf5 24. c4 a5) 21. Rfc1 {[%emt 0:02:03]} Rfc8 {[%emt 0:02:47]} (21... Bc8 {looks sharper.} 22. axb4 Qxb4 23. Qxb4 Rxb4 24. Ra3 Bg5) 22. axb4 {[%emt 0:04:19]} (22. Bf1 $14) 22... Qxb4 $11 {[%emt 0:00:38]} 23. Rxa6 {[%emt 0:00:31]} (23. Qd1 {feels hotter.} Qb7 24. Bf1 Ra8 25. c4) 23... Qxd2 {[%emt 0:03:10]} 24. Bxd2 {[%emt 0:01:21]} Rxc2 {[%emt 0:02:57]} 25. Rxc2 {[%emt 0:00:19]} Bxc2 {[%emt 0:00:08]} 26. b4 {[%emt 0:00:43]} Bd3 {[%emt 0:01:22]} 27. Ra7 {[%emt 0:01:29]} Kf8 {[%emt 0:05:00]} 28. Bf3 {[%emt 0:02:21]} Bg5 {[%emt 0:07:31]} 29. Be1 {[%emt 0:03:40] [#]} (29. Bxg5 $11 hxg5 30. Rd7) 29... Rc8 $1 $17 {[%emt 0:01:12]} 30. Ra1 {[%emt 0:00:07]} Rc1 {[%emt 0:04:34] Black is more active.} 31. Rxc1 {[%emt 0:01:52]} Bxc1 $15 {[%emt 0:00:01][%mdl 4096] Endgame KBB-KBB} 32. Bg2 {[%emt 0:03:24]} Bc4 {[%emt 0:01:51]} 33. Bf1 {[%emt 0:01:42] Black keeps a firm grip on the game.} ({Better is} 33. h4 $15) 33... Bxd5 $17 {[%emt 0:00:45]} 34. Ba6 {[%emt 0:01:41]} (34. h4 $142) 34... Ke7 {[%emt 0:00:59]} 35. Kf1 {[%emt 0:00:40]} (35. Be2 $17) 35... Kd7 $19 {[%emt 0:00:45]} 36. Ke2 {[%emt 0:00:20]} Kc7 {[%emt 0:01:41]} (36... g5 $19 37. f3 Ba3) 37. b5 {[%emt 0:06:15]} (37. f3 $17 {keeps fighting.}) 37... Ba3 {[%emt 0:01:34]} 38. Ba5+ {[%emt 0:01:14]} Kb8 {[%emt 0:00:02]} 39. Bc3 {[%emt 0:10:02]} g5 {[%emt 0:01:17] aiming for ...Bg2.} 40. Kf1 {[%emt 0:00:58]} (40. Ba5 $142) 40... Bc5 {[%emt 0:01:02]} 41. Kg1 {[%emt 0:02:43]} Bb7 {[%emt 0:05:18]} 42. Bxb7 {[%emt 0:06:21] [#]} (42. Kf1 {was the only defense.}) 42... Kxb7 {[%emt 0:00:13] KB-KB} 43. Ba5 {[%emt 0:00:25]} Bb6 {[%emt 0:00:25]} 44. Bb4 {[%emt 0:02:50]} (44. Bc3) 44... Bc7 {[%emt 0:01:00]} 45. Kf1 {[%emt 0:11:25]} Kb6 {[%emt 0:00:29]} 46. Ke2 {[%emt 0:00:23]} Kxb5 {[%emt 0:00:24]} 47. Bd2 {[%emt 0:05:25]} Kc4 {[%emt 0:02:54]} 48. f3 {[%emt 0:00:40]} Bb6 {[%emt 0:02:53]} 49. Be1 {[%emt 0:00:54]} d5 {[%emt 0:04:11][%cal Bd6d5,Bd5d4,Bd4d3][%mdl 32]} 50. Bg3 {[%emt 0:00:20]} Bd4 {[%emt 0:01:33]} 51. Kd2 {[%emt 0:00:59]} Bc3+ {[%emt 0:01:07]} 52. Kc2 {[%emt 0:01:22]} d4 {[%emt 0:01:32] Black mates.} 53. Kd1 {[%emt 0:00:30]} d3 {[%emt 0:00:40]} 54. Bf2 {[%emt 0:01:05]} Kd5 {[%emt 0:00:46]} 55. Be3 {[%emt 0:01:44]} e4 {[%emt 0:00:55]} 56. fxe4+ {[%emt 0:01:00]} Kxe4 {[%emt 0:00:12]} 57. Bc5 {[%emt 0:00:22]} Kf3 {[%emt 0:00:39] Weighted Error Value: White=1.18/Black=0.12 (very precise)} 0-1